bitfinex-derivatives/quotes_BTCF0:USTF0_20250212
["timestamp","ask_amount","ask_price","bid_price","bid_amount"]
[1739397828928,0.08117612,97640.0,97639.0,0.20497967]
[1739397829637,0.08117612,97640.0,97639.0,0.00015357]
[1739397829829,0.28600012,97640.0,97639.0,0.00015357]
[1739397831727,0.08117612,97640.0,97639.0,0.00015357]
[1739397833135,0.08117612,97640.0,97639.0,0.20497967]
[1739397833735,0.08117612,97640.0,97639.0,0.00015357]
[1739397834339,0.28600012,97640.0,97639.0,0.00015357]
[1739397834932,0.08117612,97640.0,97639.0,0.00015357]
[1739397838744,0.28600012,97640.0,97639.0,0.00015357]
[1739397839249,0.08117612,97640.0,97639.0,0.00015357]
[1739397840139,0.28600012,97640.0,97639.0,0.00015357]
[1739397844641,0.2048492,97628.0,97627.0,0.1113]
[1739397844846,0.3608,97632.0,97621.0,0.2048627]
[1739397845050,0.2048514,97627.0,97622.0,0.2048617]
[1739397845548,0.2048514,97627.0,97617.0,0.47636]
[1739397846462,0.07935921,97631.0,97617.0,0.47636]
[1739397846762,0.2048659,97620.0,97617.0,0.11556]
[1739397846946,0.2048659,97620.0,97617.0,0.1148]
[1739397847252,0.2048659,97620.0,97613.0,0.00015365]
[1739397848348,0.2048785,97614.0,97613.0,0.00015365]
[1739397848654,0.3608,97614.0,97613.0,0.20503425]
[1739397848855,0.3608,97614.0,97613.0,0.42143425]
[1739397849051,0.07935921,97630.0,97613.0,0.21655365]
[1739397849254,0.07935921,97630.0,97629.0,0.2048471]
[1739397849450,0.41627922,97640.0,97631.0,0.2048414]
[1739397849648,0.41627922,97640.0,97632.0,0.3263]
[1739397849957,0.3608,97638.0,97632.0,0.3263]
[1739397850951,0.2048425,97632.0,97624.0,0.2048574]
[1739397851151,0.3608,97629.0,97624.0,0.2048574]
[1739397852663,0.3618,97629.0,97627.0,0.2048512]
[1739397853658,0.001,97629.0,97627.0,0.2048512]
[1739397855257,0.3608,97631.0,97630.0,0.204845]
[1739397855866,0.00015365,97633.0,97632.0,0.2048408]
[1739397857064,0.00315365,97633.0,97632.0,0.2048408]
[1739397858959,0.00015365,97633.0,97632.0,0.2048408]
[1739397859264,0.00415365,97633.0,97632.0,0.2048408]
[1739397860966,0.05396394,97633.0,97632.0,0.2048408]
[1739397861668,0.04996394,97633.0,97632.0,0.2048408]
[1739397861965,0.05396394,97633.0,97632.0,0.2048408]
[1739397862767,0.04996394,97633.0,97632.0,0.2048408]
[1739397863069,0.05296394,97633.0,97632.0,0.2048408]
[1739397867580,0.00315365,97633.0,97632.0,0.2048408]
[1739397868073,0.00015365,97633.0,97632.0,0.2048408]
[1739397878575,5e-08,97633.0,97632.0,0.2048408]
[1739397879283,5e-08,97633.0,97632.0,2.0402408]
[1739397881883,5e-08,97633.0,97632.0,2.06376309]
[1739397882282,5e-08,97633.0,97632.0,2.0402408]
[1739397883884,5e-08,97633.0,97632.0,2.0412408]
[1739397884385,5e-08,97633.0,97632.0,2.0402408]
[1739397884684,5e-08,97633.0,97632.0,2.0412408]
[1739397887187,5e-08,97633.0,97632.0,2.3412408]
[1739397890487,5e-08,97633.0,97632.0,2.5603408]
[1739397890687,0.00153642,97660.0,97659.0,0.2047841]
[1739397890987,0.02577695,97660.0,97659.0,0.5655841]
[1739397891181,0.00153642,97660.0,97659.0,0.5655841]
[1739397892077,0.00753642,97660.0,97659.0,0.5655841]
[1739397894184,0.03123737,97660.0,97659.0,0.5655841]
[1739397900293,0.03123737,97660.0,97651.0,0.2047933]
[1739397900587,0.03123737,97660.0,97650.0,0.00015365]
[1739397900588,0.2048009,97651.0,97650.0,0.00015365]
[1739397900792,0.3608,97655.0,97642.0,0.2048186]
[1739397900793,0.2048177,97643.0,97642.0,0.2048186]
[1739397901189,0.3608,97644.0,97636.0,0.3608]
[1739397901395,0.2048408,97632.0,97629.0,0.2048465]
[1739397901697,0.2048408,97632.0,97631.0,0.45025945]
[1739397902393,0.3608,97635.0,97631.0,0.45025945]
[1739397902595,0.3608,97635.0,97633.0,0.2048373]
[1739397904491,0.1136,97634.0,97633.0,0.2048373]
[1739397910116,0.3184366,97634.0,97633.0,0.2048373]
[1739397910914,0.1136,97634.0,97633.0,0.2048373]
[1739397912501,0.3184366,97634.0,97633.0,0.2048373]
[1739397912707,0.1136,97634.0,97633.0,0.2048373]
[1739397920317,0.3608,97636.0,97622.0,0.05136865]
[1739397920515,0.3608,97636.0,97635.0,0.2048345]
[1739397920713,0.3608,97636.0,97635.0,1.7048345]
[1739397921623,0.3608,97636.0,97635.0,0.2048345]
[1739397923927,0.5656324,97636.0,97635.0,0.2048345]
[1739397924119,0.3608,97636.0,97628.0,0.2048477]
[1739397924315,0.2048597,97623.0,97622.0,0.00015365]
[1739397924520,0.0512087,97635.0,97617.0,0.2048719]
[1739397924521,0.2048702,97618.0,97617.0,0.2048719]
[1739397924820,0.3608,97625.0,97607.0,0.2048926]
[1739397925024,0.3608,97615.0,97608.0,0.2048907]
[1739397925415,0.59538697,97615.0,97610.0,0.2048862]
[1739397925927,0.59538697,97615.0,97602.0,0.18384425]
[1739397926124,0.59538697,97615.0,97611.0,0.2048847]
[1739397926424,0.59538697,97615.0,97612.0,0.2048822]
[1739397926623,0.39050867,97615.0,97614.0,0.2048786]
[1739397927123,0.39150867,97615.0,97614.0,0.2048786]
[1739397927626,0.39050867,97615.0,97614.0,0.2048786]
[1739397930426,0.39450867,97615.0,97614.0,0.2048786]
[1739397930828,0.39150867,97615.0,97614.0,0.2048786]
[1739397933423,0.39450867,97615.0,97614.0,0.2048786]
[1739397934033,0.39350867,97615.0,97614.0,0.2048786]
[1739397936428,0.59838517,97615.0,97614.0,0.2048786]
[1739397937232,0.60238517,97615.0,97614.0,0.2048786]
[1739397937832,0.60038517,97615.0,97614.0,0.2048786]
[1739397939333,0.59538517,97615.0,97614.0,0.2048786]
[1739397939534,0.59638517,97615.0,97614.0,0.2048786]
[1739397940534,0.60038517,97615.0,97614.0,0.2048786]
[1739397942535,0.23958517,97615.0,97614.0,0.2048786]
[1739397942836,0.39550867,97615.0,97614.0,0.2048786]
[1739397943637,0.03470867,97615.0,97614.0,0.2048786]
[1739397943831,0.39550867,97615.0,97614.0,0.2048786]
[1739397948746,0.03470867,97615.0,97614.0,0.2048786]
[1739397950853,0.23958517,97615.0,97614.0,0.2048786]
[1739397951347,0.03470867,97615.0,97614.0,0.2048786]
[1739397957751,7e-08,97615.0,97614.0,0.2048786]
[1739397958243,0.18413606,97623.0,97622.0,0.2048618]
[1739397958441,0.18413606,97623.0,97622.0,0.5656618]
[1739397958953,0.00153693,97635.0,97622.0,0.3608]
[1739397959256,0.03095593,97635.0,97634.0,0.2048366]
[1739397959453,0.00153693,97635.0,97634.0,0.2048366]
[1739397960455,0.03799698,97635.0,97634.0,0.2048366]
[1739397961952,0.03799698,97635.0,97634.0,0.2058366]
[1739397965950,0.03399698,97635.0,97634.0,0.2048366]
[1739397966547,0.03099698,97635.0,97634.0,0.2048366]
[1739397968357,0.03199698,97635.0,97634.0,0.2048366]
[1739397968758,0.03099698,97635.0,97634.0,0.2058366]
[1739397969152,0.23583148,97635.0,97634.0,0.2058366]
[1739397969352,0.23583148,97635.0,97634.0,0.2048366]
[1739397969553,0.03099698,97635.0,97634.0,0.2048366]
[1739397970557,0.03199698,97635.0,97634.0,0.2048366]
[1739397972058,0.03399698,97635.0,97634.0,0.2048366]
[1739397978662,0.03299698,97635.0,97634.0,0.2048366]
[1739397978864,0.23783148,97635.0,97634.0,0.2048366]
[1739397979064,0.59863148,97635.0,97634.0,0.2048366]
[1739397979960,0.39379698,97635.0,97634.0,0.2048366]
[1739397980360,0.03299698,97635.0,97634.0,0.2048366]
[1739397981867,0.03099698,97635.0,97634.0,0.2048366]
[1739397982075,0.03499698,97635.0,97634.0,0.2048366]
[1739397982565,0.03299698,97635.0,97634.0,0.2048366]
[1739397982969,0.03099698,97635.0,97634.0,0.2048366]
[1739397983270,0.03299698,97635.0,97634.0,0.2048366]
[1739397983471,0.23783148,97635.0,97634.0,0.2048366]
[1739397984764,0.23783148,97635.0,97605.0,0.3608]
[1739397984765,0.39379698,97635.0,97605.0,0.3608]
[1739397985063,0.3608,97621.0,97620.0,0.204866]
[1739397986271,0.39179698,97635.0,97616.0,0.0512184]
[1739397986572,0.39179698,97635.0,97625.0,0.2048538]
[1739397987166,0.3608,97626.0,97625.0,0.2048538]
[1739397987567,0.3608,97626.0,97614.0,0.18522711]
[1739397987871,0.2048641,97621.0,97620.0,0.2048624]
[1739397988773,0.2048723,97617.0,97616.0,0.001]
[1739397988971,0.2048828,97612.0,97611.0,0.00015365]
[1739397991961,0.2068828,97612.0,97611.0,0.00015365]
[1739397992166,0.25670667,97612.0,97611.0,0.00015365]
[1739397994566,0.25670667,97612.0,97604.0,0.2048992]
[1739397994567,0.2048935,97607.0,97604.0,0.2048992]
[1739397994771,0.3391,97611.0,97596.0,0.3608]
[1739397994973,0.2048871,97610.0,97606.0,0.2048933]
[1739397995468,0.2048933,97608.0,97606.0,0.2048933]
[1739397995773,0.2048933,97607.0,97606.0,0.2048933]
[1739397996075,0.24197188,97607.0,97606.0,0.2048933]
[1739397996574,0.03707858,97607.0,97606.0,0.2048933]
[1739397996875,0.5439852,97611.0,97610.0,0.204887]
[1739397998170,0.5459852,97611.0,97610.0,0.204887]
[1739397999973,0.58208878,97611.0,97610.0,0.204887]
[1739398000570,0.2049059,97601.0,97600.0,0.1]
[1739398001771,0.2049059,97601.0,97600.0,0.101]
[1739398002078,0.3608,97606.0,97600.0,0.101]
[1739398002378,0.06752,97605.0,97604.0,0.2048996]
[1739398002678,0.3608,97606.0,97605.0,0.2048975]
[1739398008771,0.5656954,97606.0,97605.0,0.2048975]
[1739398015577,0.3608,97606.0,97605.0,0.2048975]
[1739398022179,0.03610358,97611.0,97610.0,0.204887]
[1739398022491,0.2183,97616.0,97615.0,0.2048765]
[1739398022800,0.25482112,97616.0,97615.0,0.2048765]
[1739398025201,0.25782112,97616.0,97615.0,0.2048765]
[1739398025402,0.30764505,97616.0,97615.0,0.2048765]
[1739398025801,0.51251945,97616.0,97615.0,0.2048765]
[1739398027609,0.2048834,97612.0,97611.0,0.2048845]
[1739398028804,0.2068834,97612.0,97611.0,0.2048845]
[1739398031313,0.2048954,97608.0,97607.0,0.2048911]
[1739398032815,0.2058954,97608.0,97607.0,0.2048911]
[1739398033707,0.001,97608.0,97607.0,0.2048911]
[1739398037118,0.05082453,97608.0,97607.0,0.2048911]
[1739398040616,0.001,97608.0,97607.0,0.2048911]
[1739398047327,0.05082415,97608.0,97607.0,0.2048911]
[1739398068646,0.25571535,97608.0,97607.0,0.2048911]
[1739398069745,0.05082415,97608.0,97607.0,0.2048911]
[1739398079952,0.001,97608.0,97607.0,0.2048911]
[1739398081644,0.03652112,97616.0,97615.0,0.2048765]
[1739398081848,0.00015365,97618.0,97614.0,0.3608]
[1739398082049,0.00015365,97618.0,97616.0,0.2048744]
[1739398082352,0.21625887,97617.0,97616.0,0.2048744]
[1739398083162,0.03196447,97617.0,97616.0,0.2048744]
[1739398083352,0.00015365,97618.0,97617.0,0.2048723]
[1739398084759,0.03124762,97618.0,97617.0,0.2048723]
[1739398086357,0.03524762,97618.0,97617.0,0.2048723]
[1739398089566,0.24011782,97618.0,97617.0,0.2048723]
[1739398090561,0.03524762,97618.0,97617.0,0.2048723]
[1739398097168,0.0794017,97627.0,97616.0,0.3608]
[1739398097369,0.0794017,97627.0,97626.0,0.2048534]
[1739398097566,0.1735528,97631.0,97630.0,0.204845]
[1739398097965,0.20124552,97631.0,97630.0,0.204845]
[1739398099272,0.02769272,97631.0,97630.0,0.204845]
[1739398099577,0.007,97631.0,97630.0,0.205845]
[1739398100873,0.23917711,97631.0,97630.0,0.205845]
[1739398102664,0.03433421,97631.0,97630.0,0.205845]
[1739398105174,0.59997711,97631.0,97630.0,0.001]
[1739398105567,0.81797711,97631.0,97630.0,0.205845]
[1739398107673,0.45717711,97631.0,97630.0,0.001]
[1739398107875,0.45717711,97631.0,97630.0,0.205845]
[1739398108579,0.81797711,97631.0,97630.0,0.205845]
[1739398111470,0.81797711,97631.0,97630.0,0.001]
[1739398112370,0.81797711,97631.0,97630.0,0.205845]
[1739398112969,0.81597711,97631.0,97630.0,0.204845]
[1739398113577,0.81497711,97631.0,97630.0,0.204845]
[1739398115781,0.81097711,97631.0,97630.0,0.204845]
[1739398116082,0.81397711,97631.0,97630.0,0.204845]
[1739398117081,0.81497711,97631.0,97630.0,0.204845]
[1739398117479,0.81097711,97631.0,97630.0,0.204845]
[1739398117682,0.81497711,97631.0,97630.0,0.204845]
[1739398119783,0.81097711,97631.0,97630.0,0.204845]
[1739398119977,0.81497711,97631.0,97630.0,0.204845]
[1739398120684,0.45417711,97631.0,97630.0,0.204845]
[1739398120985,0.2048547,97627.0,97626.0,0.2048523]
[1739398122887,0.3608,97628.0,97627.0,0.2048513]
[1739398123387,0.61013421,97631.0,97630.0,0.204845]
[1739398123980,0.60613421,97631.0,97630.0,0.204845]
[1739398124579,0.61013421,97631.0,97630.0,0.204845]
[1739398125887,0.81497711,97631.0,97630.0,0.204845]
[1739398127492,0.2048536,97626.0,97621.0,0.00015365]
[1739398128191,0.2048536,97626.0,97625.0,0.2048555]
[1739398129996,0.2048466,97630.0,97629.0,0.204845]
[1739398130494,0.24533421,97631.0,97621.0,0.00015365]
[1739398130796,0.2048555,97626.0,97625.0,0.2048536]
[1739398132993,0.2088555,97626.0,97625.0,0.2048536]
[1739398133494,0.004,97626.0,97625.0,0.2048536]
[1739398134488,0.003,97626.0,97621.0,0.00015365]
[1739398135598,0.003,97626.0,97625.0,0.2048555]
[1739398136099,0.001,97626.0,97621.0,0.00015365]
[1739398136898,0.2048499,97628.0,97627.0,0.2048513]
[1739398137190,0.60665422,97631.0,97630.0,0.204845]
[1739398137395,0.60613421,97631.0,97630.0,0.204845]
[1739398138396,0.81097711,97631.0,97630.0,0.204845]
[1739398139497,0.59297711,97631.0,97630.0,0.204845]
[1739398139693,0.59697711,97631.0,97630.0,0.204845]
[1739398140097,0.59297711,97631.0,97630.0,0.204845]
[1739398140298,0.59797711,97631.0,97630.0,0.204845]
[1739398140697,0.59297711,97631.0,97630.0,0.204845]
[1739398140896,0.59697711,97631.0,97630.0,0.204845]
[1739398141898,0.39213421,97631.0,97630.0,0.204845]
[1739398143008,0.39313421,97631.0,97630.0,0.204845]
[1739398143503,0.38813421,97631.0,97630.0,0.204845]
[1739398143696,0.39213421,97631.0,97630.0,0.204845]
[1739398143897,0.39213421,97631.0,97630.0,1.704845]
[1739398144699,0.03133421,97631.0,97630.0,1.704845]
[1739398144906,0.03133421,97631.0,97630.0,0.204845]
[1739398145106,0.02733421,97631.0,97630.0,0.204845]
[1739398145304,0.004,97631.0,97630.0,0.204845]
[1739398145713,0.15895705,97640.0,97627.0,0.18435457]
[1739398145913,0.18677333,97640.0,97638.0,0.2048281]
[1739398146106,0.02796993,97640.0,97638.0,0.2048281]
[1739398147203,0.03096993,97640.0,97638.0,0.2048281]
[1739398148313,0.03096993,97640.0,97632.0,0.2048404]
[1739398148505,0.03096993,97640.0,97627.0,0.18435457]
[1739398148699,0.02796993,97640.0,97627.0,0.18435457]
[1739398148904,0.03396993,97640.0,97638.0,0.001]
[1739398149610,0.03396993,97640.0,97638.0,0.2058278]
[1739398149810,0.03096993,97640.0,97638.0,0.2048278]
[1739398150314,0.02796993,97640.0,97638.0,0.2048278]
[1739398150512,0.03396993,97640.0,97638.0,0.2058278]
[1739398150906,0.23879453,97640.0,97638.0,0.001]
[1739398151709,0.2048261,97639.0,97638.0,0.001]
[1739398151910,0.3131261,97639.0,97638.0,0.001]
[1739398152804,0.1083,97639.0,97634.0,0.18435457]
[1739398153004,0.2048345,97635.0,97634.0,0.18335457]
[1739398154217,0.1153,97639.0,97623.0,0.4506643]
[1739398154413,0.3608,97628.0,97623.0,0.4506643]
[1739398154910,0.2048522,97627.0,97623.0,0.4506643]
[1739398156309,0.2048522,97627.0,97623.0,0.2458061]
[1739398156515,0.2048522,97627.0,97624.0,0.2048572]
[1739398156917,0.2048535,97626.0,97624.0,0.2048572]
[1739398157518,0.2048555,97625.0,97624.0,0.2048572]
[1739398159417,0.004,97627.0,97626.0,0.2048534]
[1739398159615,0.004,97627.0,97621.0,0.24595975]
[1739398159616,0.3608,97628.0,97627.0,0.2048513]
[1739398160315,0.54809334,97640.0,97639.0,0.2048261]
[1739398160516,0.38876993,97640.0,97639.0,0.2048261]
[1739398162214,0.39576993,97640.0,97639.0,0.2048261]
[1739398177235,0.03496993,97640.0,97639.0,0.2048261]
[1739398178341,0.2048324,97636.0,97635.0,0.2048332]
[1739398178836,0.5656324,97636.0,97635.0,0.2048332]
[1739398179247,0.3608,97636.0,97629.0,0.2458061]
[1739398179540,0.3608,97636.0,97630.0,0.2048437]
[1739398179930,0.3648,97636.0,97630.0,0.2048437]
[1739398180429,0.3608,97636.0,97630.0,0.2048437]
[1739398180629,0.3618,97636.0,97629.0,0.2458061]
[1739398180933,0.2048438,97631.0,97629.0,0.2458061]
[1739398181733,0.2048438,97631.0,97627.0,0.2048494]
[1739398181931,0.3608,97628.0,97627.0,0.2048494]
[1739398183339,0.3648,97628.0,97627.0,0.2048494]
[1739398183535,0.3648,97628.0,97625.0,0.2458061]
[1739398183739,0.3638,97628.0,97625.0,0.2458061]
[1739398184839,0.003,97628.0,97625.0,0.4506615]
[1739398185135,0.003,97628.0,97626.0,0.2048515]
[1739398185737,0.2078498,97628.0,97626.0,0.2048515]
[1739398186242,0.2048498,97628.0,97626.0,0.2048515]
[1739398186443,0.2078498,97628.0,97626.0,0.2048515]
[1739398186945,0.2048498,97628.0,97626.0,0.2048515]
[1739398187241,0.2048618,97622.0,97621.0,0.24595975]
[1739398187436,0.2048618,97622.0,97621.0,0.23168199]
[1739398188943,0.5656618,97622.0,97621.0,0.23168199]
[1739398189538,0.3608,97622.0,97616.0,0.2048731]
[1739398189931,0.2048661,97620.0,97616.0,0.2048731]
[1739398190346,0.2048661,97620.0,97612.0,0.00010244]
[1739398190347,0.2048807,97613.0,97612.0,0.00010244]
[1739398190644,0.204887,97610.0,97609.0,0.17953995]
[1739398192342,0.3608,97617.0,97611.0,0.2048847]
[1739398192543,0.3608,97617.0,97609.0,0.17953995]
[1739398192943,0.2048865,97611.0,97609.0,0.18053995]
[1739398193243,0.204887,97610.0,97609.0,0.18053995]
[1739398193443,0.204887,97610.0,97609.0,0.38442905]
[1739398194042,0.204887,97610.0,97609.0,0.38542905]
[1739398194244,0.204887,97610.0,97609.0,0.2058891]
[1739398195650,0.204887,97610.0,97609.0,0.2048891]
[1739398195854,0.204887,97610.0,97609.0,0.2058891]
[1739398196256,0.204887,97610.0,97609.0,0.2048891]
[1739398198753,0.3608,97611.0,97604.0,0.2048984]
[1739398198953,0.2048975,97605.0,97604.0,0.2048984]
[1739398199456,0.3608,97611.0,97600.0,0.1]
[1739398199656,0.2049028,97603.0,97600.0,0.3049065]
[1739398199857,0.1588034,97610.0,97604.0,0.001]
[1739398200060,0.3608,97611.0,97604.0,0.001]
[1739398200262,0.06732,97610.0,97604.0,0.001]
[1739398200562,0.2049053,97602.0,97600.0,0.3049065]
[1739398200755,0.2049059,97601.0,97600.0,0.3049065]
[1739398202962,0.22888284,97601.0,97600.0,0.3049065]
[1739398203264,0.02397694,97601.0,97600.0,0.3049065]
[1739398203453,0.5656998,97604.0,97600.0,0.3049065]
[1739398203762,0.2049037,97603.0,97600.0,0.3049065]
[1739398204265,0.2049037,97603.0,97600.0,0.1]
[1739398204562,0.2049037,97603.0,97601.0,0.2049051]
[1739398205063,0.3608,97604.0,97603.0,0.2049017]
[1739398205364,0.2049059,97601.0,97600.0,0.1]
[1739398205565,0.22898046,97601.0,97600.0,0.1]
[1739398206558,0.22898046,97601.0,97600.0,0.304908]
[1739398208068,0.22898046,97601.0,97600.0,0.1]
[1739398208866,0.2049206,97594.0,97591.0,0.2203]
[1739398209167,0.5657206,97594.0,97592.0,0.2049243]
[1739398211766,0.5657206,97594.0,97591.0,0.2203]
[1739398212173,0.3608,97594.0,97589.0,0.00153684]
[1739398212372,0.204929,97590.0,97589.0,0.00153684]
[1739398213665,0.205929,97590.0,97589.0,0.00153684]
[1739398217678,0.566729,97590.0,97589.0,0.00153684]
[1739398218070,0.565729,97590.0,97589.0,0.00153684]
[1739398218270,0.566729,97590.0,97589.0,0.00153684]
[1739398218575,0.20495,97580.0,97579.0,0.1099]
[1739398218775,0.2049542,97578.0,97577.0,0.21457732]
[1739398221374,0.2069542,97578.0,97577.0,0.21457732]
[1739398222776,0.2069542,97578.0,97577.0,0.19123732]
[1739398223476,0.2069542,97578.0,97564.0,0.3419]
[1739398223477,0.2049815,97565.0,97564.0,0.3419]
[1739398223678,0.5657815,97565.0,97564.0,0.3419]
[1739398224071,0.3608,97565.0,97564.0,0.3419]
[1739398224370,0.3608,97565.0,97564.0,0.5468836]
[1739398224571,0.3608,97565.0,97564.0,0.3419]
[1739398224774,0.3608,97565.0,97564.0,0.5468836]
[1739398225881,0.38191078,97565.0,97564.0,0.5468836]
[1739398228489,0.58689228,97565.0,97564.0,0.3419]
[1739398228679,0.38191078,97565.0,97564.0,0.3419]
[1739398228877,0.38191078,97565.0,97564.0,0.5468836]
[1739398229880,0.38191078,97565.0,97564.0,0.3419]
[1739398230086,0.38191078,97565.0,97559.0,0.0025344]
[1739398230285,0.2049915,97561.0,97559.0,0.0025344]
[1739398231181,0.204992,97560.0,97559.0,0.0025344]
[1739398238487,0.204992,97560.0,97559.0,0.2075285]
[1739398238791,0.208992,97560.0,97559.0,0.2075285]
[1739398239992,0.004,97560.0,97559.0,0.2075285]
[1739398240290,0.004,97560.0,97559.0,0.20599118]
[1739398240680,0.3648,97560.0,97559.0,0.20599118]
[1739398241383,0.567792,97560.0,97559.0,0.20599118]
[1739398241887,0.569792,97560.0,97559.0,0.20599118]
[1739398245292,0.56975117,97560.0,97559.0,0.20599118]
[1739398245794,0.56975117,97560.0,97559.0,0.2049941]
[1739398246785,0.3648,97560.0,97559.0,0.2049941]
[1739398248193,0.3618,97560.0,97559.0,0.2049941]
[1739398248586,0.567792,97560.0,97559.0,0.2049941]
[1739398250896,0.565792,97560.0,97559.0,0.2049941]
[1739398251488,0.568792,97560.0,97559.0,0.2049941]
[1739398251898,0.565792,97560.0,97559.0,0.2049941]
[1739398252195,0.2049965,97558.0,97555.0,0.45057965]
[1739398252398,0.2050004,97556.0,97555.0,0.24557735]
[1739398253388,0.3648,97560.0,97545.0,0.30725762]
[1739398253588,0.5658214,97546.0,97545.0,0.30725762]
[1739398254100,0.5658214,97546.0,97545.0,0.26196854]
[1739398254298,0.3608,97546.0,97535.0,0.36870915]
[1739398254501,0.3608,97536.0,97535.0,0.36870915]
[1739398255409,0.1588034,97545.0,97535.0,0.36870915]
[1739398255595,0.1588034,97545.0,97537.0,0.205039]
[1739398255790,0.1588034,97545.0,97538.0,0.2050375]
[1739398256696,0.0794017,97545.0,97543.0,0.2050259]
[1739398257094,0.3608,97546.0,97543.0,0.2050259]
[1739398258693,0.3608,97546.0,97526.0,0.0512654]
[1739398258900,0.0794017,97540.0,97539.0,0.2050361]
[1739398259099,0.3628,97546.0,97545.0,0.2050235]
[1739398259301,0.3608,97546.0,97545.0,0.2050235]
[1739398259705,0.00015373,97550.0,97549.0,0.2050151]
[1739398264809,0.00015373,97550.0,97549.0,0.2060151]
[1739398265298,0.00015373,97550.0,97549.0,0.2050151]
[1739398268416,0.00115373,97550.0,97549.0,0.2050151]
[1739398268810,0.00015373,97550.0,97549.0,0.2050151]
[1739398271115,0.00115373,97550.0,97549.0,0.2050151]
[1739398271515,0.00015373,97550.0,97549.0,0.2060151]
[1739398274112,0.00015373,97550.0,97549.0,0.2050151]
[1739398274319,0.00015373,97550.0,97549.0,0.2060151]
[1739398275920,0.00015373,97550.0,97549.0,0.2050151]
[1739398278020,0.00015373,97550.0,97549.0,0.2060151]
[1739398281107,0.00015373,97550.0,97549.0,0.2050151]
[1739398281315,0.00015373,97550.0,97549.0,0.2060151]
[1739398281916,0.0187096,97550.0,97549.0,0.2060151]
[1739398282219,0.00015373,97550.0,97549.0,0.2050151]
[1739398282522,0.00015373,97550.0,97549.0,0.2060151]
[1739398283116,0.01899308,97550.0,97549.0,0.2060151]
[1739398284424,0.01899308,97550.0,97549.0,0.2050151]
[1739398284722,0.01899308,97550.0,97549.0,0.2060151]
[1739398288329,0.01899308,97550.0,97549.0,0.2050151]
[1739398288528,0.01899308,97550.0,97549.0,0.2060151]
[1739398290431,0.01899308,97550.0,97549.0,0.2050151]
[1739398290630,0.01899308,97550.0,97549.0,0.2060151]
[1739398291028,0.01899308,97550.0,97549.0,0.2050151]
[1739398291228,0.01899308,97550.0,97549.0,0.2060151]
[1739398293933,8e-08,97550.0,97549.0,0.2060151]
[1739398294140,0.3608,97560.0,97559.0,0.2049941]
[1739398295338,0.37980807,97560.0,97559.0,0.2049941]
[1739398297431,0.38180807,97560.0,97559.0,0.2049941]
[1739398298438,0.37980807,97560.0,97559.0,0.2049941]
[1739398298634,0.38180807,97560.0,97559.0,0.2049941]
[1739398299934,0.37980807,97560.0,97559.0,0.2049941]
[1739398300141,0.38180807,97560.0,97559.0,0.2049941]
[1739398301141,0.00015373,97569.0,97568.0,0.2049752]
[1739398301343,0.01964735,97569.0,97568.0,0.2049752]
[1739398301539,0.01964735,97569.0,97568.0,1.7049752]
[1739398301540,0.00015373,97569.0,97568.0,1.7049752]
[1739398303038,0.00515373,97569.0,97568.0,1.7049752]
[1739398303433,0.02386548,97569.0,97568.0,1.7049752]
[1739398303637,0.00515373,97569.0,97568.0,1.7049752]
[1739398305042,0.00515373,97569.0,97568.0,0.2049752]
[1739398305943,0.02389591,97569.0,97568.0,0.2049752]
[1739398306146,0.00515373,97569.0,97568.0,0.38923891]
[1739398307967,0.02458703,97569.0,97568.0,0.38923891]
[1739398308244,0.00515373,97569.0,97568.0,0.38923891]
[1739398309846,0.00515373,97569.0,97568.0,0.2049752]
[1739398310846,0.02431504,97569.0,97568.0,0.2049752]
[1739398312549,0.01931504,97569.0,97568.0,0.2049752]
[1739398312754,0.02331504,97569.0,97568.0,0.2049752]
[1739398322357,0.02331504,97569.0,97568.0,0.5657752]
[1739398323156,0.01931504,97569.0,97568.0,0.5657752]
[1739398323360,0.01931504,97569.0,97568.0,0.5677752]
[1739398323754,0.01931504,97569.0,97568.0,0.5657752]
[1739398323958,0.01931504,97569.0,97568.0,0.5667752]
[1739398324457,0.01931504,97569.0,97568.0,0.5657752]
[1739398327151,0.01931504,97569.0,97568.0,0.5667752]
[1739398327558,0.01931504,97569.0,97568.0,0.5657752]
[1739398327856,0.01931504,97569.0,97568.0,0.5667752]
[1739398330857,0.01931504,97569.0,97568.0,0.5657752]
[1739398331061,0.01931504,97569.0,97568.0,0.5667752]
[1739398334068,0.01931504,97569.0,97568.0,0.5657752]
[1739398339369,0.02031504,97569.0,97568.0,0.5657752]
[1739398339559,0.02031504,97569.0,97568.0,0.81128492]
[1739398339755,0.01931504,97569.0,97568.0,0.81128492]
[1739398340071,0.02031504,97569.0,97568.0,0.81128492]
[1739398342170,0.02131504,97569.0,97568.0,0.81128492]
[1739398342674,0.02131504,97569.0,97568.0,0.5657752]
[1739398344371,0.3608,97584.0,97568.0,0.5657752]
[1739398344372,0.3608,97584.0,97583.0,0.2049437]
[1739398344970,0.3850365,97584.0,97583.0,1.7049437]
[1739398345172,0.3850365,97584.0,97583.0,0.2049437]
[1739398345769,0.3890365,97584.0,97583.0,0.2049437]
[1739398346065,0.0282365,97584.0,97583.0,0.2049437]
[1739398368180,0.004,97584.0,97583.0,0.2049437]
[1739398368580,1e-07,97584.0,97583.0,0.2049437]
[1739398369273,0.2049417,97584.0,97583.0,0.2049437]
[1739398371989,1e-07,97584.0,97574.0,0.00015373]
[1739398372291,1e-07,97584.0,97579.0,0.2049504]
[1739398372292,0.2049517,97580.0,97579.0,0.2049504]
[1739398373596,0.2069517,97580.0,97579.0,0.2049504]
[1739398375905,0.002,97580.0,97577.0,0.18432817]
[1739398376105,0.2049542,97578.0,97577.0,0.38928417]
[1739398376299,0.2049542,97578.0,97577.0,0.10704107]
[1739398376494,0.2049542,97578.0,97569.0,0.18545367]
[1739398376495,0.204971,97570.0,97569.0,0.18545367]
[1739398376697,0.565771,97570.0,97569.0,0.18545367]
[1739398378302,0.3608,97570.0,97560.0,0.00015373]
[1739398378498,0.3598,97561.0,97560.0,0.00015373]
[1739398379506,0.3598,97561.0,97560.0,0.20514573]
[1739398379702,0.3598,97561.0,97560.0,0.20814573]
[1739398380808,0.5647899,97561.0,97560.0,0.20814573]
[1739398384309,0.3598,97561.0,97560.0,0.20814573]
[1739398385717,0.5647899,97561.0,97560.0,0.20814573]
[1739398387814,0.5657899,97561.0,97560.0,0.20814573]
[1739398389021,0.5657899,97561.0,97560.0,0.00315373]
[1739398396923,0.2050214,97546.0,97545.0,0.00056]
[1739398397125,0.2050214,97546.0,97545.0,0.2050235]
[1739398398623,0.22858257,97546.0,97545.0,0.2050235]
[1739398399126,0.22958257,97546.0,97545.0,0.2090235]
[1739398400424,0.02456117,97546.0,97545.0,0.2090235]
[1739398402826,0.02456117,97546.0,97529.0,0.00052]